bitfinex/quotes_SOLUSD_20250210
["timestamp","ask_amount","ask_price","bid_price","bid_amount"]
[1739152536983,17.03132173,198.72,198.7,6.30532369]
[1739152537149,17.03132173,198.71,198.7,6.30532369]
[1739152537354,17.97436053,198.71,198.66,0.03]
[1739152537564,17.03132173,198.67,198.66,0.03]
[1739152539763,27.70089913,198.73,198.66,0.15549]
[1739152540161,27.70089913,198.71,198.66,0.15549]
[1739152540479,27.70089913,198.71,198.66,0.78475318]
[1739152540775,27.70089913,198.69,198.66,0.03]
[1739152541275,47.70089913,198.67,198.66,0.03]
[1739152541476,83.69593706,198.67,198.57,12.67321762]
[1739152541779,27.70089913,198.58,198.57,12.67321762]
[1739152542579,27.70089913,198.62,198.57,12.67321762]
[1739152542785,27.70089913,198.6,198.57,12.67321762]
[1739152543081,0.9430388,198.68,198.57,12.67321762]
[1739152543082,27.70089913,198.58,198.57,12.67321762]
[1739152545678,27.70089913,198.58,198.57,12.17321762]
[1739152546280,27.70089913,198.58,198.57,12.20321762]
[1739152553803,27.70089913,198.58,198.55,0.03]
[1739152553804,30.92369913,198.58,198.55,0.03]
[1739152553972,27.70089913,198.56,198.54,0.03]
[1739152554172,27.70089913,198.55,198.54,0.03]
[1739152555601,27.70089913,198.55,198.43,0.75557166]
[1739152555602,58.62509826,198.55,198.43,0.75557166]
[1739152555772,58.62509826,198.55,198.38,11.7368]
[1739152555773,27.70089913,198.44,198.38,1.6556]
[1739152556110,27.70089913,198.39,198.36,6.4608]
[1739152556273,27.70089913,198.37,198.36,10.4937]
[1739152557479,27.70089913,198.37,198.34,4.0333]
[1739152557674,27.70089913,198.35,198.34,4.0333]
[1739152558511,27.70089913,198.36,198.34,4.0333]
[1739152558699,1.0,198.53,198.36,0.12549]
[1739152558700,27.70089913,198.39,198.36,0.12549]
[1739152559012,27.70089913,198.4,198.36,0.88138732]
[1739152559207,27.70089913,198.4,198.37,4.0328]
[1739152559400,27.70089913,198.41,198.38,0.88134448]
[1739152559607,27.70089913,198.4,198.38,0.12549]
[1739152559913,17.0936075,198.4,198.38,0.12549]
[1739152560114,17.0936075,198.41,198.39,0.75580354]
[1739152560296,17.0936075,198.42,198.38,1.00674954]
[1739152560484,17.0936075,198.41,198.38,1.00674954]
[1739152561383,17.0936075,198.41,198.39,4.0324]
[1739152561633,17.0936075,198.45,198.41,0.12549]
[1739152561815,17.0936075,198.5,198.43,30.75643603]
[1739152562115,17.0936075,198.5,198.45,0.25098]
[1739152562409,1.0060388,198.58,198.44,1.6556]
[1739152562613,1.0060388,198.58,198.43,0.75552641]
[1739152562614,1.0,198.46,198.32,0.75561792]
[1739152562783,0.9430388,198.46,198.33,4.0335]
[1739152563183,20.9430388,198.48,198.33,4.0335]
[1739152563400,0.9430388,198.48,198.33,4.0335]
[1739152563606,17.0936075,198.34,198.33,14.1177]
[1739152563811,17.0936075,198.38,198.34,13.66282853]
[1739152563988,17.0936075,198.38,198.35,0.75592926]
[1739152564314,1.6392,198.49,198.35,0.7559169]
[1739152564492,17.0936075,198.5,198.37,1.0]
[1739152564682,6.5957,198.57,198.41,0.12549]
[1739152564909,0.063,198.58,198.45,0.12549]
[1739152565115,0.063,198.58,198.47,0.12549]
[1739152565419,0.063,198.58,198.41,1.0]
[1739152565420,1.6392,198.57,198.39,4.0322]
[1739152565616,17.0936075,198.42,198.4,0.7556332]
[1739152565801,17.0936075,198.44,198.4,0.25098]
[1739152566000,17.0936075,198.44,198.41,0.75569061]
[1739152566202,17.0936075,198.43,198.39,4.0322]
[1739152566407,17.0936075,198.44,198.4,0.75568682]
[1739152566704,17.0936075,198.5,198.35,4.0332]
[1739152566705,17.0936075,198.41,198.35,4.0332]
[1739152566905,17.0936075,198.39,198.36,0.75598107]
[1739152567115,17.0936075,198.41,198.37,0.75588863]
[1739152567282,17.0936075,198.41,198.37,0.75583793]
[1739152567483,17.0936075,198.4,198.35,0.88135226]
[1739152567688,17.0936075,198.37,198.33,4.78944038]
[1739152567883,17.0936075,198.39,198.34,0.75600224]
[1739152568122,17.0936075,198.39,198.35,0.75594576]
[1739152568285,17.0936075,198.36,198.32,0.75602228]
[1739152568802,17.0936075,198.36,198.32,0.75609052]
[1739152568996,17.0936075,198.37,198.32,0.75609052]
[1739152569415,17.0936075,198.37,198.33,4.0336]
[1739152569595,17.0936075,198.37,198.33,4.7896416]
[1739152569792,17.0936075,198.4,198.35,0.12549]
[1739152569993,17.0936075,198.5,198.35,0.12549]
[1739152569994,17.0936075,198.42,198.36,0.88141528]
[1739152570311,17.0936075,198.39,198.34,0.88138155]
[1739152570492,17.0936075,198.39,198.35,0.755961]
[1739152571022,17.0936075,198.39,198.35,0.75593483]
[1739152571217,17.0936075,198.4,198.36,4.7889408]
[1739152571924,17.0936075,198.41,198.37,0.75588792]
[1739152572415,17.0936075,198.4,198.36,4.78890046]
[1739152572714,17.0936075,198.37,198.31,4.78980273]
[1739152572918,17.0936075,198.36,198.31,4.78980273]
[1739152573220,17.0936075,198.39,198.33,0.12549]
[1739152573520,17.0936075,198.4,198.34,4.78938148]
[1739152573690,17.0936075,198.43,198.35,18.1005244]
[1739152573886,17.0936075,198.5,198.39,0.12549]
[1739152573887,17.0936075,198.45,198.39,0.12549]
[1739152574103,17.0936075,198.46,198.4,0.88122448]
[1739152574319,17.0936075,198.42,198.35,17.84930665]
[1739152574493,18.0366463,198.5,198.34,4.78932086]
[1739152574702,18.0366463,198.5,198.35,0.12549]
[1739152575097,20.0366463,198.5,198.32,4.0337]
[1739152575299,23.2248,198.46,198.32,4.78973394]
[1739152575507,17.0936075,198.36,198.3,4.0341]
[1739152575816,3.2248,198.46,198.31,0.75609546]
[1739152575817,17.0936075,198.35,198.31,0.75609546]
[1739152576205,17.0936075,198.36,198.31,0.75609546]
[1739152576401,17.0936075,198.39,198.32,17.97519449]
[1739152576589,17.0936075,198.38,198.33,0.7559907]
[1739152576791,17.0936075,198.38,198.34,0.75604161]
[1739152577316,17.0936075,198.37,198.32,0.88148831]
[1739152577628,17.0936075,198.35,198.29,0.75605856]
[1739152577918,17.0936075,198.3,198.26,1.6556]
[1739152578218,17.0936075,198.3,198.26,2.41189744]
[1739152578592,17.0936075,198.29,198.25,4.91697679]
[1739152578792,17.0936075,198.3,198.25,4.91697679]
[1739152580122,17.0936075,198.31,198.25,4.91697679]
[1739152580320,17.0936075,198.35,198.29,0.12549]
[1739152580617,17.0936075,198.35,198.29,0.88165443]
[1739152580922,17.0936075,198.37,198.31,0.12549]
[1739152581128,17.0936075,198.38,198.33,0.12549]
[1739152581424,17.0936075,198.39,198.34,0.75600678]
[1739152581637,17.0936075,198.41,198.35,0.88146314]
[1739152581802,17.0936075,198.43,198.37,0.12549]
[1739152582008,17.0936075,198.43,198.38,0.75583904]
[1739152582513,17.0936075,198.43,198.39,4.0324]
[1739152582717,17.0936075,198.41,198.38,4.0326]
[1739152582912,17.0936075,198.4,198.36,10.1298]
[1739152583217,17.0936075,198.38,198.36,6.0969]
[1739152583525,17.0936075,198.37,198.31,6.0969]
[1739152583829,17.0936075,198.32,198.29,4.0643]
[1739152584115,17.0936075,198.33,198.29,4.0643]
[1739152584321,17.0936075,198.32,198.29,4.0643]
[1739152584704,17.0936075,198.36,198.3,0.88172709]
[1739152584917,17.0936075,198.38,198.32,13.66282853]
[1739152585118,17.0936075,198.38,198.33,0.7560177]
[1739152585504,17.0936075,198.34,198.29,4.0643]
[1739152585710,17.0936075,198.33,198.3,0.12549]
[1739152586226,17.0936075,198.33,198.31,4.034]
[1739152586422,17.0936075,198.37,198.32,0.12549]
[1739152586613,17.0936075,198.33,198.31,4.034]
[1739152586796,17.0936075,198.33,198.29,4.0643]
[1739152586999,17.0936075,198.34,198.29,4.0643]
[1739152587210,17.0936075,198.33,198.29,4.82050038]
[1739152587521,17.0936075,198.33,198.29,4.0643]
[1739152587726,17.0936075,198.35,198.29,4.82053813]
[1739152588124,17.0936075,198.35,198.3,0.12549]
[1739152588509,17.0936075,198.37,198.32,0.12549]
[1739152589036,17.0936075,198.4,198.34,0.25098]
[1739152589235,17.0936075,198.4,198.29,0.03]
[1739152589236,1.0,198.3,198.29,0.03]
[1739152589439,1.0,198.3,198.16,6.85361041]
[1739152589733,2.29369523,198.3,198.12,4.79443213]
[1739152590038,0.9430388,198.29,198.12,4.79443213]
[1739152590225,0.9430388,198.29,198.12,0.75663213]
[1739152590429,17.0936075,198.19,198.12,0.75663213]
[1739152590606,17.0936075,198.17,198.12,0.75663213]
[1739152590809,1.0,198.26,198.11,6.0969]
[1739152590810,17.0936075,198.14,198.11,6.0969]
[1739152591011,17.0936075,198.13,198.11,6.0969]
[1739152591839,27.85271372,198.13,198.11,6.0969]
[1739152592013,27.85271372,198.14,198.11,6.0969]
[1739152592835,27.85271372,198.13,198.11,6.0969]
[1739152593334,27.85271372,198.14,198.11,6.0969]
[1739152593842,27.85271372,198.2,198.11,6.0969]
[1739152593843,27.85271372,198.18,198.12,5.04579326]
[1739152594014,1.6522,198.26,198.12,5.04579326]
[1739152594015,27.85271372,198.15,198.12,5.04579326]
[1739152594717,27.85271372,198.18,198.14,0.12549]
[1739152594921,27.85271372,198.19,198.14,0.12549]
[1739152595241,27.85271372,198.18,198.15,0.12549]
[1739152596026,27.85271372,198.19,198.16,13.53733853]
[1739152596328,27.85271372,198.23,198.19,0.12549]
[1739152596528,27.85271372,198.23,198.21,13.66282853]
[1739152597246,0.9430388,198.36,198.24,0.12549]
[1739152597247,27.85271372,198.26,198.24,0.12549]
[1739152597417,27.85271372,198.27,198.24,0.88187716]
[1739152597618,27.85271372,198.26,198.24,0.88187716]
[1739152597820,27.85271372,198.25,198.24,17.69832853]
[1739152598331,27.85271372,198.25,198.24,4.28648]
[1739152598551,27.85271372,198.25,198.24,4.0355]
[1739152598727,27.85271372,198.25,198.23,10.5854]
[1739152598923,27.85271372,198.24,198.23,10.71089]
[1739152599643,27.85271372,198.24,198.23,24.24822853]
[1739152599940,27.85271372,198.25,198.24,0.12549]
[1739152600441,27.85271372,198.25,198.23,10.5854]
[1739152600743,27.85271372,198.24,198.23,10.5854]
[1739152600936,27.85271372,198.25,198.24,0.12549]
[1739152601317,27.85271372,198.25,198.23,10.5854]
[1739152601529,27.85271372,198.24,198.23,10.5854]
[1739152601728,27.85271372,198.24,198.23,10.71089]
[1739152601931,27.85271372,198.25,198.24,0.12549]
[1739152602542,27.85271372,198.25,198.23,4.0356]
[1739152602745,27.85271372,198.24,198.23,4.0356]
[1739152602916,27.85271372,198.26,198.24,0.12549]
[1739152603126,27.85271372,198.27,198.24,13.53733853]
[1739152603335,27.85271372,198.26,198.24,14.29366781]
[1739152603859,27.85271372,198.25,198.24,14.29366781]
[1739152604023,27.85271372,198.25,198.24,4.0355]
[1739152605548,27.85271372,198.25,198.22,4.0357]
[1739152605757,20.0,198.2,198.11,0.03]
[1739152605923,27.85271372,198.12,198.11,0.03]
[1739152607451,55.70542744,198.12,198.11,0.03]
[1739152608626,61.78782744,198.12,198.01,0.75715342]
[1739152608835,27.85271372,198.02,198.01,0.75715342]
[1739152609034,27.85271372,198.02,198.01,13.66282853]
[1739152612148,27.85271372,198.02,197.99,0.75725644]
[1739152612335,27.85271372,198.0,197.97,4.0409]
[1739152612642,27.85271372,197.99,197.98,14.42015396]
[1739152613039,27.85271372,198.0,197.99,13.53733853]
[1739152613345,27.85271372,198.0,197.99,0.12549]
[1739152613743,17.16230976,198.0,197.99,0.12549]
[1739152614653,17.16230976,198.0,197.95,7.30711835]
[1739152614838,17.16230976,197.98,197.95,11.34841835]
[1739152615040,17.16230976,197.98,197.96,0.25098]
[1739152615333,17.16230976,198.01,197.96,13.66282853]
[1739152615551,17.16230976,198.03,197.98,0.25098]
[1739152615725,17.16230976,198.03,198.0,0.25098]
[1739152616047,17.16230976,198.04,198.01,0.75730891]
[1739152616251,17.16230976,198.04,198.03,0.12549]
[1739152616750,17.16230976,198.1,198.05,0.12549]
[1739152616955,17.16230976,198.1,198.08,0.12549]
[1739152617247,17.16230976,198.11,198.1,0.12549]
[1739152617546,17.16230976,198.12,198.11,13.66282853]
[1739152617750,17.16230976,198.12,198.06,0.75687944]
[1739152618051,17.16230976,198.07,198.05,0.75693453]
[1739152618224,17.16230976,198.07,198.06,13.66282853]
[1739152618648,9.7695,198.19,198.08,0.12549]
[1739152618649,17.16230976,198.11,198.08,0.12549]
[1739152618951,17.16230976,198.14,198.1,13.66282853]
[1739152619167,17.16230976,198.14,198.12,0.12549]
[1739152619627,17.16230976,198.17,198.14,0.25098]
[1739152619834,17.16230976,198.2,198.16,13.66282853]
[1739152620054,17.16230976,198.2,198.19,0.12549]
[1739152620849,17.16230976,198.2,198.17,4.0367]
[1739152621051,17.16230976,198.18,198.11,0.75668046]
[1739152621232,17.16230976,198.12,198.08,4.79546184]
[1739152621421,17.16230976,198.09,198.08,4.0386]
[1739152621625,17.16230976,198.2,198.08,4.0386]
[1739152621831,17.16230976,198.2,198.1,13.66282853]
[1739152622154,17.16230976,198.16,198.13,0.12549]
[1739152622448,17.16230976,198.17,198.16,0.12549]
[1739152623235,17.16230976,198.17,198.13,4.0375]
[1739152623431,17.16230976,198.14,198.13,4.0375]
[1739152623635,17.16230976,198.14,198.12,0.12549]
[1739152623841,17.16230976,198.14,198.13,0.12549]
[1739152624042,17.16230976,198.16,198.13,0.12549]
[1739152624251,17.16230976,198.19,198.15,0.25098]
[1739152624451,17.16230976,198.19,198.16,0.75669134]
[1739152624825,17.16230976,198.21,198.17,13.66282853]
[1739152625031,0.063,198.29,198.21,4.0361]
[1739152625231,17.16230976,198.23,198.21,0.7564692]
[1739152625446,17.16230976,198.23,198.2,4.16169]
[1739152625654,3.2906,198.29,198.22,0.12549]
[1739152625655,17.16230976,198.24,198.22,0.12549]
[1739152626068,17.16230976,198.25,198.21,0.75652343]
[1739152626261,17.16230976,198.26,198.22,0.12549]
[1739152626461,17.16230976,198.26,198.23,0.75639698]
[1739152626663,17.16230976,198.27,198.24,0.12549]
[1739152626990,0.063,198.29,198.26,13.66282853]
[1739152627274,0.063,198.29,198.28,30.82513829]
[1739152627444,0.063,198.29,198.28,31.82513829]
[1739152627644,0.063,198.44,198.34,7.70078]
[1739152627869,0.063,198.44,198.36,13.66282853]
[1739152628072,0.063,198.44,198.4,30.69964829]
[1739152628281,0.063,198.44,198.43,17.41328976]
[1739152628572,0.063,198.44,198.39,0.12549]
[1739152628573,0.063,198.43,198.39,0.75553995]
[1739152628748,0.063,198.43,198.42,33.53733853]
[1739152628953,0.063,198.43,198.42,15.41834981]
[1739152629194,0.063,198.49,198.48,13.53733853]
[1739152629470,0.063,198.49,198.48,14.29268968]
[1739152629649,0.063,198.49,198.46,0.75542967]
[1739152629848,0.063,198.49,198.38,1.0]
[1739152629849,0.063,198.49,198.4,4.78762603]
[1739152630046,0.063,198.49,198.43,13.66282853]
[1739152630276,9.0555,198.62,198.48,82.4267271]
[1739152630570,27.74855384,198.49,198.48,82.4267271]
[1739152630868,27.74855384,198.49,198.48,6.86889392]
[1739152631054,27.74855384,198.49,198.44,10.30334088]
[1739152631371,27.74855384,198.45,198.44,10.30334088]
[1739152632369,27.74855384,198.45,198.4,6.86889392]
[1739152632572,27.74855384,198.41,198.4,6.86889392]
[1739152633256,27.74855384,198.41,198.34,7.7805358]
[1739152633476,27.74855384,198.35,198.34,7.7805358]
[1739152634475,13.2857,198.48,198.34,7.7805358]
[1739152634476,27.74855384,198.37,198.34,7.7805358]
[1739152634672,27.74855384,198.39,198.34,7.7805358]
[1739152634881,27.74855384,198.4,198.34,0.75605577]
[1739152635190,27.74855384,198.36,198.29,28.50450688]
[1739152635364,27.74855384,198.35,198.29,0.75595304]
[1739152635670,27.74855384,198.34,198.29,0.75595304]
[1739152636066,27.74855384,198.34,198.3,0.12549]
[1739152636252,27.74855384,198.39,198.33,0.12549]
[1739152636451,27.74855384,198.4,198.33,28.63003425]
[1739152636658,20.0,198.45,198.3,0.75598051]
[1739152636850,20.0,198.45,198.29,0.75598051]
[1739152637046,20.0,198.45,198.3,13.53733853]
[1739152637274,20.0,198.45,198.31,0.75610486]
[1739152637275,3.2251,198.44,198.31,0.75610486]
[1739152637476,3.2245,198.48,198.34,13.53733853]
[1739152637648,3.2245,198.48,198.35,0.75594362]
[1739152637857,23.2245,198.48,198.35,0.75594362]
[1739152638551,23.2245,198.48,198.34,14.29327432]
[1739152639169,23.2245,198.48,198.34,18.32667432]
[1739152639362,23.2245,198.48,198.34,14.29327432]
[1739152639681,20.0,198.46,198.3,4.0342]
[1739152639975,1.0,198.44,198.28,0.75614092]
[1739152640177,1.0,198.42,198.25,0.75623485]
[1739152640357,2.0,198.41,198.24,8.53687576]
[1739152640564,20.0,198.38,198.24,12.57227576]
[1739152640764,20.0,198.38,198.24,7.7805358]
[1739152641165,11.2897,198.41,198.24,0.75644263]
[1739152641364,12.2897,198.41,198.24,0.75644263]
[1739152641567,13.2897,198.41,198.24,0.75644263]
[1739152641766,12.2897,198.41,198.24,0.75644263]
[1739152641967,13.2897,198.41,198.24,0.75644263]
[1739152642385,13.2897,198.41,198.24,4.79184263]
[1739152643091,3.2256,198.41,198.26,27.78776451]
[1739152643288,3.2256,198.41,198.27,0.75617027]
[1739152643478,3.2256,198.41,198.28,13.53733853]
[1739152643680,3.2256,198.41,198.26,0.75616591]
[1739152643878,3.2256,198.41,198.27,41.45059304]
[1739152644084,0.063,198.42,198.3,27.91325451]
[1739152644285,0.063,198.42,198.31,0.75605189]
[1739152644686,0.063,198.42,198.26,4.0351]
[1739152644995,0.063,198.42,198.3,13.53733853]
[1739152645186,0.063,198.42,198.32,13.53733853]
[1739152645366,0.063,198.42,198.31,0.75601977]
[1739152645570,0.063,198.42,198.29,14.41892937]
[1739152645904,0.063,198.42,198.3,0.75613053]
[1739152646091,0.063,198.42,198.32,0.12549]
[1739152646293,0.063,198.42,198.34,41.32510304]
[1739152646481,0.063,198.42,198.35,0.75593357]
[1739152646792,0.063,198.42,198.36,4.033]
[1739152648203,0.063,198.42,198.28,10.84246176]
[1739152648375,0.063,198.42,198.28,4.0345]
[1739152648567,0.063,198.42,198.29,0.75631339]
[1739152648773,0.063,198.42,198.28,4.79063306]
[1739152649182,0.063,198.42,198.28,4.0345]
[1739152649899,7.4001,198.41,198.26,11.8155358]
[1739152650074,7.4001,198.41,198.26,12.57189471]
[1739152650075,3.2258,198.4,198.26,12.57189471]
[1739152650487,3.2258,198.4,198.26,32.57912342]
[1739152650990,3.2258,198.4,198.27,13.53733853]
[1739152651182,3.2258,198.4,198.28,0.7562058]
[1739152651790,0.063,198.42,198.28,0.7562058]
[1739152652093,1.0,198.43,198.25,4.0353]
[1739152652301,2.0,198.43,198.25,4.0353]
[1739152652602,21.0,198.44,198.26,28.5440656]
[1739152652774,21.0,198.44,198.27,27.78776451]
[1739152652975,21.0,198.44,198.28,0.75620042]
[1739152653503,20.0,198.44,198.28,0.75620042]
[1739152653794,3.2253,198.43,198.29,4.0344]
[1739152654178,3.2253,198.43,198.28,4.0346]
[1739152654179,4.2253,198.43,198.28,4.0346]
[1739152654383,4.2253,198.43,198.26,4.0349]
[1739152654384,1.0,198.4,198.26,4.0349]
[1739152654805,1.0,198.39,198.23,4.0357]
[1739152655789,11.2914,198.38,198.22,17.57323853]
[1739152656174,11.2914,198.38,198.23,0.75642508]
[1739152656674,11.2914,198.38,198.22,18.32965221]
[1739152656874,3.2261,198.38,198.24,27.78776451]
[1739152657175,3.2261,198.38,198.25,0.75630254]
[1739152657377,8.0623,198.46,198.29,41.32510304]
[1739152657583,3.2249,198.45,198.3,28.54383295]
[1739152657792,3.2249,198.45,198.31,27.78776451]
[1739152658093,3.2249,198.45,198.32,0.75605596]
[1739152658599,6.4001,198.47,198.36,27.78776451]
[1739152658902,1.6032,198.49,198.36,27.78776451]
[1739152658903,1.6032,198.49,198.38,4.0326]
[1739152659084,1.6032,198.49,198.39,0.75579579]
[1739152659488,1.6032,198.49,198.38,4.0326]
[1739152660004,1.6032,198.49,198.39,0.75582095]
[1739152660493,3.2871,198.5,198.39,0.75582095]
[1739152660689,0.063,198.5,198.41,27.78776451]
[1739152660877,0.063,198.5,198.42,4.78748032]
[1739152661381,0.063,198.5,198.45,13.53733853]
[1739152661584,0.063,198.5,198.49,27.78776451]
[1739152661787,0.063,198.5,198.49,42.20601617]
[1739152662291,6.356,198.65,198.53,13.66282853]
[1739152662599,6.356,198.65,198.54,0.75518278]
[1739152662784,6.356,198.65,198.55,4.0292]
[1739152662978,9.5777,198.65,198.51,0.75521097]
[1739152663184,9.5777,198.65,198.49,4.0304]
[1739152663398,9.5777,198.65,198.5,0.75536044]
[1739152663581,9.5777,198.65,198.5,14.16720897]
[1739152663783,9.5777,198.65,198.51,13.53733853]
[1739152663984,9.5777,198.65,198.52,0.75521909]
[1739152664279,9.5777,198.65,198.5,0.7552965]
[1739152664603,18.632,198.65,198.49,4.0304]
[1739152664809,1.0,198.63,198.47,4.0308]
[1739152664993,20.0,198.62,198.45,10.1719]
[1739152665186,20.0,198.62,198.44,7.7805358]
[1739152665187,1.5057,198.59,198.44,7.7805358]
[1739152665376,1.0,198.57,198.44,7.7805358]
[1739152665776,1.0,198.58,198.44,7.7805358]
[1739152665777,2.0,198.58,198.44,7.7805358]
[1739152665975,2.5057,198.59,198.44,11.8118358]
[1739152666286,1.0,198.58,198.42,4.0317]
[1739152666496,6.293,198.55,198.4,11.8126358]
[1739152666892,3.2235,198.54,198.4,7.7805358]
[1739152667192,3.2235,198.54,198.4,11.8127358]
[1739152667596,3.2235,198.54,198.4,4.0322]
[1739152667915,3.2235,198.54,198.41,0.75576315]
[1739152668402,3.2235,198.54,198.42,4.0318]
[1739152668600,6.293,198.55,198.42,4.0318]
[1739152668902,9.5164,198.55,198.42,4.0318]
[1739152669301,9.5164,198.55,198.42,4.7875243]
[1739152669481,6.293,198.55,198.43,13.53733853]
[1739152669680,6.293,198.55,198.44,0.75555604]
[1739152670181,6.293,198.55,198.43,14.29289884]
[1739152670389,9.5163,198.55,198.44,4.0314]
[1739152670709,6.293,198.55,198.44,4.0314]
[1739152670897,9.5164,198.55,198.44,4.0314]
[1739152672399,6.293,198.55,198.45,0.75561631]
[1739152672711,9.5164,198.55,198.42,0.8811056]
[1739152672883,9.5164,198.55,198.43,13.41184853]
[1739152672884,6.293,198.55,198.43,13.41184853]
[1739152673083,4.7285,198.59,198.45,13.53733853]
[1739152673278,4.7285,198.59,198.45,14.29282085]
[1739152673505,4.7285,198.59,198.45,0.12549]
[1739152673807,4.7285,198.59,198.44,0.75557217]
[1739152674293,4.7285,198.59,198.45,4.0312]
[1739152675802,4.7285,198.59,198.42,0.75557773]
[1739152676012,12.7853,198.59,198.43,4.0316]
[1739152676607,4.7285,198.59,198.44,0.88114492]
[1739152676813,4.7285,198.59,198.44,0.75565492]
[1739152676989,4.7285,198.59,198.43,14.1107]
[1739152677183,4.7285,198.59,198.42,0.7556277]
[1739152677184,21.0,198.56,198.42,0.7556277]
[1739152677383,21.0,198.56,198.39,4.0322]
[1739152677384,6.3362,198.52,198.39,4.0322]
[1739152677590,6.3362,198.52,198.4,7.7805358]
[1739152677800,7.3362,198.52,198.4,7.7805358]
[1739152678009,11.284,198.51,198.4,7.7805358]
[1739152678190,11.284,198.51,198.4,11.8127358]
[1739152678388,6.3362,198.52,198.42,0.12549]
[1739152678606,3.2233,198.55,198.43,0.75568426]
[1739152679009,6.3362,198.57,198.44,13.53733853]
[1739152679010,9.5593,198.57,198.44,13.53733853]
[1739152679312,0.063,198.55,198.41,0.75555241]
[1739152679516,0.063,198.55,198.4,4.0622]
[1739152680000,0.063,198.55,198.42,4.0318]
[1739152680196,0.063,198.55,198.42,4.78748695]
[1739152680401,0.063,198.55,198.42,14.86708695]
[1739152680603,0.063,198.55,198.43,13.53733853]
[1739152680913,0.063,198.55,198.44,0.75555502]
[1739152681521,0.063,198.55,198.45,4.0312]
[1739152681887,0.063,198.55,198.42,0.75559898]
[1739152682188,0.063,198.55,198.44,13.53733853]
[1739152682389,0.063,198.55,198.44,14.29291948]
[1739152682595,0.063,198.55,198.44,0.75558095]
[1739152682898,0.063,198.55,198.43,4.0316]
[1739152683419,20.0,198.54,198.4,4.0622]
[1739152683721,20.0,198.53,198.4,4.0622]
[1739152684110,20.0,198.54,198.4,4.0622]
[1739152684311,21.0,198.54,198.4,0.03]
[1739152684618,20.0,198.52,198.4,0.03]
[1739152685097,11.3447,198.55,198.4,4.0622]
[1739152685497,8.1214,198.55,198.4,0.03]
[1739152686720,20.0,198.52,198.4,0.03]
[1739152687097,21.0,198.52,198.4,0.03]
[1739152687395,20.0,198.52,198.4,0.03]
[1739152688419,8.6644,198.49,198.4,0.03]
[1739152688915,11.2857,198.48,198.4,0.03]
[1739152689501,12.2857,198.48,198.4,0.03]
[1739152689708,11.2857,198.48,198.4,0.03]
[1739152690095,13.84228316,198.48,198.4,0.03]
[1739152690388,11.2857,198.48,198.4,0.03]
[1739152691116,3.2245,198.48,198.4,0.03]
[1739152692422,6.1552,198.54,198.4,0.78589655]
[1739152692721,6.1552,198.54,198.41,13.41184853]
[1739152692914,6.1552,198.54,198.43,13.41184853]
[1739152693117,1.5722,198.55,198.46,50.50880775]
[1739152693118,0.063,198.55,198.46,50.50880775]
[1739152693318,0.063,198.55,198.49,0.12549]
[1739152693623,0.063,198.55,198.51,13.41184853]
[1739152693827,0.063,198.55,198.49,0.75531242]
[1739152694529,0.063,198.55,198.5,17.44204853]
[1739152694733,0.063,198.55,198.46,4.0309]
[1739152695225,0.063,198.55,198.42,4.78725581]
[1739152695429,0.063,198.55,198.42,4.0317]
[1739152696306,0.063,198.55,198.44,4.0314]
[1739152698040,0.063,198.55,198.42,4.0316]
[1739152698331,6.1552,198.54,198.4,11.8426358]
[1739152698534,6.1552,198.54,198.4,7.8105358]
[1739152699038,6.1552,198.54,198.4,0.03]
[1739152699741,6.1552,198.54,198.4,0.78572657]
[1739152699931,3.2236,198.53,198.4,4.81782657]
[1739152700420,3.2236,198.53,198.41,13.41184853]
[1739152700628,3.2236,198.53,198.42,0.7556636]
[1739152701437,6.1552,198.54,198.43,13.41184853]
[1739152701618,6.1552,198.54,198.44,0.75558629]
[1739152701819,3.2864,198.55,198.44,0.75558629]
[1739152701820,0.063,198.55,198.44,0.75558629]
[1739152702140,0.063,198.55,198.45,4.0312]
[1739152703245,0.063,198.55,198.41,4.78739846]
[1739152703622,0.063,198.55,198.41,18.19924699]
[1739152703822,0.063,198.55,198.41,4.0318]
[1739152704221,0.063,198.55,198.42,0.03]
[1739152705414,21.063,198.55,198.42,0.03]